Cogmind - Beta 16 @@@ ROGUE MODE // 2025.12.12 @ 21:38:29 Player: Keyes Result: Destroyed by AA-3Z1(x) with Makeshift Spear Performance ------------- Evolutions (0) 0 Regions Visited (3) 600 Robots Destroyed (5) 25 Value Destroyed (101) 101 Prototype IDs (2) 40 Alien Tech Used (0) 0 Bonus (800) 800 TOTAL SCORE: 1566 Bonus ------- Registered with UFD 300 Met Optimus in HQ 500 Cogmind --------- Core Integrity 0/250 Matter 300/300 Energy 100/100 System Corruption 0% Temperature Warm (174) Movement Walking (170) Ox1 Location -7/Scraptown Parts ------- > --- POWER (1) -------- (None) > --- PROPULSION (2) --- Overtuned Titanium Leg > --- UTILITY (2) ------ Large Storage Unit > --- WEAPON (2) ------- Heavy Particle Cannon > --- INVENTORY (15) --- Improved Ion Engine Subdweller Power Source Armored Treads Makeshift Leg Wheel Cooling System High-capacity Battery (250) Transmission Jammer Heavy Armor Plating A0-MCA's Component Scanner System Guard Proton Missile Launcher CPS Tube (2) Peak State ------------ > --- POWER ------------ Ion Engine > --- PROPULSION ------- Makeshift Leg Compact Wheel > --- UTILITY ---------- Small Storage Unit Advanced Sensor Array > --- WEAPON ----------- Subdweller Machine Gun Flak Gun > --- INVENTORY -------- Subdweller Power Source Armored Treads Wheel Heavy Armor Plating Light Assault Rifle Proton Missile Launcher CPS Tube [Rating: 20] Favorites ----------- Power Ion Engine Engine Ion Engine Propulsion Wheel Treads Light Treads Leg Makeshift Leg Wheel Wheel Utility Small Storage Unit Device Advanced Sensor Array Storage Small Storage Unit Weapon Subdweller Machine Gun Energy Gun Salvaging Laser Energy Cannon Heavy Particle Cannon Ballistic Gun Subdweller Machine Gun Build | -11 -10 -10 -7 ------- Run | Yrd Mat Sub Scr Slots Evolved . | . . . . Power . | . . . . Propulsion . | . . . . Utility . | . . . . Weapon . | . . . . Parts Attached 22 | 8 . 4 10 Power 2 | 1 . . 1 Engine 2 | 1 . . 1 Core . | . . . . Reactor . | . . . . Propulsion 7 | 2 . 1 4 Treads 1 | 1 . . . Leg 3 | . . . 3 Wheel 3 | 1 . 1 1 Hover . | . . . . Flight . | . . . . Utility 6 | 3 . . 3 Device 4 | 2 . . 2 Storage 2 | 1 . . 1 Processor . | . . . . Hackware . | . . . . Protection . | . . . . Artifact . | . . . . Weapon 7 | 2 . 3 2 Energy Gun 2 | . . 2 . Energy Cannon 1 | . . . 1 Ballistic Gun 4 | 2 . 1 1 Ballistic Cannon . | . . . . Launcher . | . . . . Special Weapon . | . . . . Impact Weapon . | . . . . Slashing Weapon . | . . . . Piercing Weapon . | . . . . Special Melee Weapon . | . . . . Unidentified Prototypes . | . . . . Parts Lost 8 | . . 2 6 Power 1 | . . . 1 Propulsion 2 | . . . 2 Utility 2 | . . 1 1 Weapon 3 | . . 1 2 Highest Loss Streak 6 | . . 1 6 To Critical Strikes . | . . . . Average Backups 9 | 3 7 7 11 Power 1 | . 2 2 1 Propulsion 2 | 1 3 3 2 Utility 3 | . . . 4 Weapon 1 | 1 1 1 1 Tool/Special . | . . . . Unused Backups 19 | . 1 3 15 Power 3 | . . 1 2 Propulsion 4 | . . 2 2 Utility 8 | . . . 8 Weapon 2 | . 1 . 1 Tool/Special 2 | . . . 2 Average Slot Usage (%) 97 | . 100 93 98 Engine 14 | . 14 14 14 Treads 4 | . 14 14 . Leg 3 | . . . 4 Wheel 20 | . 14 14 22 Device 11 | . 14 8 12 Storage 14 | . 14 14 14 Energy Gun 6 | . . 11 4 Ballistic Gun 21 | . 28 16 22 Peak Build Rating 20 | 9 7 10 20 Average Rating 15 | 6 7 8 17 On Entrance 5 | . 7 7 9 Avg Prop Armor Cover (%) 10 | 13 12 12 8 Naked Turns . | . . . . Heaviest Build 35 | 12 12 14 35 Greatest Support 37 | 10 10 20 37 Greatest Overweight (x) 3 | 1 1 1 3 Average Overweight (x) . | . 1 . . Largest Inventory Capacity 15 | 8 8 8 15 Average Capacity 11 | 7 8 8 12 Most Carried 15 | 7 8 8 15 Average Carried 10 | 3 7 7 12 Final Capacity 15 | 8 8 8 15 Final Carried 14 | 7 7 8 14 Class Distribution -------------------- 93% | Mutant 6% | Scavenger-Mutant Dominant Class ---------------- Mutant | -10/Materials Mutant | -10/Subcaves Mutant | -7/Scraptown Resources | -11 -10 -10 -7 ----------- Run | Yrd Mat Sub Scr Matter Collected 492 | 297 . 76 119 Remotely . | . . . . Salvage Created 131 | 46 . 85 . Parts 18 | 10 . 8 . Haulers Intercepted . | . . . . Recyclers Shooed . | . . . . Parts Field Recycled . | . . . . Retrieved Matter . | . . . . Parts Self-Destructed 7 | . . 7 . Prevented . | . . . . Parts Restored . | . . . . Kills | -11 -10 -10 -7 ------- Run | Yrd Mat Sub Scr Combat Hostiles Destroyed 2 | . . 2 . Guns 2 | . . 2 . Classes Destroyed 2 | 1 . 1 . Tunneler 3 | 3 . . . Subdweller 2 | . . 2 . Best Kill Streak 2 | 2 . 1 . Combat Bots Only 1 | . . 1 . Max Kills in Single Turn 1 | 1 . 1 . Gunslinging . | . . . . Exploded . | . . . . Melee . | . . . . Uniques/NPCs Destroyed . | . . . . Combat | -11 -10 -10 -7 -------- Run | Yrd Mat Sub Scr Hostile Shots Fired 76 | . . 29 47 Missed 24 | . . 9 15 Hits 52 | . . 20 32 Melee 4 | . . . 4 Projectile 48 | . . 20 28 Critical Strikes 6 | . . 3 3 Damage Taken 949 | . . 420 529 Core 260 | . . 104 156 Absorbed by Shields . | . . . . Core Remaining (%) 100 | 100 . . . Volleys Fired 28 | 5 . 18 5 Largest 2 | 2 . 2 2 Hottest 103 | 40 . 60 103 Shots Fired 52 | 7 . 36 9 Gun 49 | 7 . 36 6 Cannon 3 | . . . 3 Launcher . | . . . . Special . | . . . . Kinetic 31 | 7 . 18 6 Thermal 14 | . . 11 3 Explosive . | . . . . Electromagnetic 7 | . . 7 . Robot Hit Streak 8 | 6 . 8 4 Robot Miss Streak 1 | . . 1 1 Penetration Max . | . . . . Secondary Targets . | . . . . Shots Hit Robots 39 | 6 . 27 6 Core Hits 11 | 3 . 5 3 Critical Kills . | . . . . Critical Parts Destroyed . | . . . . Critical Strikes . | . . . . Melee Attacks . | . . . . Impact . | . . . . Slashing . | . . . . Piercing . | . . . . Sneak Attacks . | . . . . Combat Hostiles . | . . . . Follow-up Attacks . | . . . . Damage Inflicted 545 | 70 . 327 148 Guns 470 | 70 . 327 73 Cannons 75 | . . . 75 Explosions . | . . . . Melee . | . . . . Ramming . | . . . . Kinetic 352 | 70 . 209 73 Thermal 128 | . . 53 75 Explosive . | . . . . Electromagnetic 65 | . . 65 . Impact . | . . . . Slashing . | . . . . Piercing . | . . . . Highest Corruption . | . . . . Average Corruption . | . . . . Corruption Purged . | . . . . Corruption Blocked . | . . . . Overload Shots . | . . . . Overflow Damage . | . . . . Projectiles . | . . . . Explosions . | . . . . Melee . | . . . . Knockbacks . | . . . . Impact . | . . . . Kinetic . | . . . . Secondary . | . . . . Self-Inflicted Damage . | . . . . Shots . | . . . . Rammed . | . . . . Targets Rammed . | . . . . Kicked . | . . . . Crushed . | . . . . Highest Temperature 174 | . . . 174 Average Temperature 58 | . . . 58 Received Heat Transfer 237 | . . 42 195 Siege Activations . | . . . . Martial Activations . | . . . . Shielding Activations . | . . . . Robots Disrupted . | . . . . Combat Hostiles . | . . . . Robots Corrupted . | . . . . Combat Hostiles . | . . . . Parts Fried . | . . . . Impact Corruptions . | . . . . Robots Melted . | . . . . Combat Hostiles . | . . . . Parts Melted 1 | . . 1 . Heat Transferred 249 | . . 150 99 Parts Sabotaged . | . . . . Parts Stolen . | . . . . Parts Stripped . | . . . . Power Chain Reactions . | . . . . Alert | -11 -10 -10 -7 ------- Run | Yrd Mat Sub Scr Maximum Alert Level . | . . . . Low Security (%) 100 | 100 100 . . Level 1 . | . . . . Level 2 . | . . . . Level 3 . | . . . . Level 4 . | . . . . Level 5 . | . . . . High Security . | . . . . Max Security . | . . . . Peak Influence 10 | 10 5 . . Initial . | . . . . Average . | 1 . . . Influence Increases 24 | 15 9 . . Destroy 0b10 Robot/NC 15 | 15 . . . Successful Hack 9 | . 9 . . Influence Decreases 24 | 15 9 . . Time Decay 24 | 15 9 . . Squads Dispatched . | . . . . Investigation . | . . . . Extermination . | . . . . Reinforcement . | . . . . Assault . | . . . . Garrison . | . . . . Intercept . | . . . . Searches Triggered . | . . . . Construction Impeded . | . . . . Haulers Reinforced . | . . . . Active Scanning Responses . | . . . . Cargo Convoy Interrupts . | . . . . Stealth | -11 -10 -10 -7 --------- Run | Yrd Mat Sub Scr Distress Signals . | . . . . Communications Jammed . | . . . . Distress Signals . | . . . . Times Spotted 15 | . . 7 8 Peak Tracking Total 5 | . . 2 5 Tactical Retreats 1 | . . 1 . Traps | -11 -10 -10 -7 ------- Run | Yrd Mat Sub Scr Traps Triggered . | . . . . Indirectly . | . . . . Trap Hack Attempts . | . . . . Triggered . | . . . . Disarmed . | . . . . Reprogrammed . | . . . . Reused . | . . . . Traps Extracted . | . . . . Installed . | . . . . Triggered . | . . . . Machines | -11 -10 -10 -7 ---------- Run | Yrd Mat Sub Scr Machines Disabled 1 | . . . 1 Max in Single Turn 1 | . . . 1 Machines Repaired . | . . . . Machines Dismantled . | . . . . Machines Sabotaged . | . . . . Overloaded Fab Kills . | . . . . Hacking | -11 -10 -10 -7 --------- Run | Yrd Mat Sub Scr Machines Accessed 11 | . 2 1 8 Terminals 2 | . 2 . . Fabricators . | . . . . Repair Stations . | . . . . Recycling Units . | . . . . Scanalyzers . | . . . . Garrison Access . | . . . . Total Hacks 75 | . 5 5 65 Successful 73 | . 3 5 65 Failed 2 | . 2 . . Catastrophic . | . . . . Database Lockouts . | . . . . Manual 1 | . 1 . . Terminals 5 | . 5 . . Fabricators . | . . . . Repair Stations . | . . . . Recycling Units . | . . . . Scanalyzers . | . . . . Garrison Access . | . . . . Terminal Hacks 72 | . 2 5 65 Record 70 | . . 5 65 Prototype ID Bank 1 | . 1 . . Locate Traps 1 | . 1 . . Fabricator Hacks . | . . . . Repair Station Hacks . | . . . . Recycling Unit Hacks . | . . . . Scanalyzer . | . . . . Garrison Access Hacks . | . . . . Unauthorized Hacks 1 | . 1 . . Terminals 1 | . 1 . . Botnet 1 | . 1 . . Fabricators . | . . . . Repair Stations . | . . . . Recycling Units . | . . . . Scanalyzers . | . . . . Garrison Access . | . . . . Data Cores Recovered . | . . . . Used . | . . . . Hacking Detections . | . . . . Full Trace Events . | . . . . Feedback Events . | . . . . Feedback Blocked . | . . . . Robot Schematics Acquired . | . . . . Robots Built . | . . . . Authchips . | . . . . Time . | . . . . Total Robot Build Rating . | . . . . Part Schematics Acquired . | . . . . Parts Built . | . . . . Authchips . | . . . . Time . | . . . . Total Part Build Rating . | . . . . Part Studies Acquired . | . . . . Parts Repaired . | . . . . Time . | . . . . Parts Recycled . | . . . . Recycled Matter . | . . . . Retrieved Matter . | . . . . Retrieved Components . | . . . . Parts Scanalyzed . | . . . . Part Schematics Acquired . | . . . . Parts Damaged . | . . . . Bothacking | -11 -10 -10 -7 ------------ Run | Yrd Mat Sub Scr Used RIF Installer . | . . . . Robots Hacked . | . . . . Non-combat . | . . . . Combat . | . . . . Robot Hacks Applied . | . . . . Relay Couplers Released . | . . . . Fabnet Peak Effective % . | . . . . Robots Rewired . | . . . . Allies Hacked . | . . . . Hacks Repelled . | . . . . Allies | -11 -10 -10 -7 -------- Run | Yrd Mat Sub Scr Total Allies . | . . . . Largest Group . | . . . . Highest-Rated Group . | . . . . Highest-Rated Ally . | . . . . Total Orders . | . . . . Ally Attacks . | . . . . Total Damage . | . . . . Kills . | . . . . Allies Corrupted . | . . . . Allies Melted . | . . . . Intel | -11 -10 -10 -7 ------- Run | Yrd Mat Sub Scr Active Infowar (turns) 1907 | 54 111 369 1373 Sensors 1373 | . . . 1373 Terrain 36 | 36 . . . Seismic 498 | 18 111 369 . Robot Analysis Total . | . . . . Derelict Logs Recovered 3 | . . 1 2 Drone Launches . | . . . . Drone Recoveries . | . . . . Exploration | -11 -10 -10 -7 ------------- Run | Yrd Mat Sub Scr Turns Passed 3001 | 82 111 649 2159 Spaces Moved 2647 | 55 92 533 1967 Core 10 | 10 . . . Treads . | . . . . Legs 12 | . . . 12 Wheels 2625 | 45 92 533 1955 Hover . | . . . . Flight . | . . . . Fastest Speed 50 | 50 95 95 90 Average Speed 106 | 85 95 106 107 Slowest Speed 125 | 95 95 110 125 Overloaded Moves . | . . . . Propulsion Burnouts . | . . . . Robots Hopped . | . . . . Potential Cave-ins . | . . . . Cave-ins Triggered . | . . . . Exploration Rate (%) 40 | 3 20 49 91 Regions Visited 3 Branch Regions 2 Pre-discovered Areas 1 | . . 1 . Known Exits Taken . | . . . . Unknown Exits Taken 3 | 1 1 1 . Scrap Searched 3 | . . . 3 Spaces Dug . | . . . . Terrain Destroyed 1 | . . . 1 Melee . | . . . . Projectile 1 | . . . 1 AOE . | . . . . Terrain Rammed . | . . . . Walls Destroyed . | . . . . Machines Disabled . | . . . . Actions | -11 -10 -10 -7 --------- Run | Yrd Mat Sub Scr Total 2798 | 83 116 584 2015 Wait 46 | . 23 22 1 Move 2644 | 54 91 532 1967 Hop . | . . . . Pick Up 36 | 15 1 3 17 Fast Attach 7 | . . 2 5 Attach 9 | 8 . . 1 Detach . | . . . . Swap 7 | . . 2 5 Drop 21 | 1 1 5 14 Fire 28 | 5 . 18 5 Melee . | . . . . Ram . | . . . . Kick . | . . . . Crush . | . . . . Escape Stasis . | . . . . Rewire . | . . . . Trap . | . . . . Miscellaneous . | . . . . Route ------- -11/Scrapyard -10/Materials (discovered 2 exits: [*Min] / *Sub) -10/Subcaves (discovered 2 exits: [*Mat] / *Scr) -7/Scraptown (discovered 2 exits: [*Fac x2]) History --------- Turn | Location | Event 4 | -11/Scrapyard | Discovered new exit (range 15) 83 | -11/Scrapyard | Entered Materials 84 | -10/Materials | Met a group of wandering Federalists 117 | -10/Materials | Discovered new exit (range 15) 165 | -10/Materials | Discovered new exit (range 7) 194 | -10/Materials | Entered Subcaves 195 | -10/Subcaves | Continued accompanying wandering Federalists (6) 202 | -10/Subcaves | Discovered new exit (range 7) 309 | -10/Subcaves | Build established: Mutant 346 | -10/Subcaves | A swath of the cavern ceiling suddenly collapsed 397 | -10/Subcaves | Learned Materials terminal intel 526 | -10/Subcaves | Visited Clippyterm 529 | -10/Subcaves | Learned location of Extension (-6) 529 | -10/Subcaves | Learned Research security intel 843 | -10/Subcaves | Entered Scraptown 1188 | -7/Scraptown | Heard Great Nut preacher, LISTEN AND RECITE! 1310 | -7/Scraptown | Discovered new exit (range 5) 1343 | -7/Scraptown | Scanned Subdweller tech in exchange for log data 1346 | -7/Scraptown | Learned Factory terminal intel 1466 | -7/Scraptown | Visited Fellowship of the Rings 1491 | -7/Scraptown | Visited CPS Storage 1514 | -7/Scraptown | Visited UFD Registry 1514 | -7/Scraptown | Registered with UFD as "Armorblaster" 1524 | -7/Scraptown | Visited SPCMW 1579 | -7/Scraptown | Visited Junk Repository 1864 | -7/Scraptown | Visited TADAMA 1890 | -7/Scraptown | Visited Cyclists 1913 | -7/Scraptown | Entered Cyclist Reading Room 1982 | -7/Scraptown | Visited Abandonware Association 2019 | -7/Scraptown | Visited Scrapoid Pod Storage 2036 | -7/Scraptown | Found Scrapoid Pod 2093 | -7/Scraptown | Visited Scrap Suit Storage 2219 | -7/Scraptown | Discovered new exit (range 5) 2318 | -7/Scraptown | Visited Observation Area 2367 | -7/Scraptown | Visited Curators Association 2452 | -7/Scraptown | Visited Scrapoid Research Area 2496 | -7/Scraptown | Visited A0-MCA Data Center 2503 | -7/Scraptown | Given a B rating by A0-MCA 2517 | -7/Scraptown | Found A0-MCA's Component Scanner 2875 | -7/Scraptown | Met Optimus 2875 | -7/Scraptown | Accepted into 0bPrime 2951 | -7/Scraptown | Civil war broke out across Scraptown 2971 | -7/Scraptown | Core integrity fell below 50% 3001 | -7/Scraptown | Core integrity fell below 20% 3002 | -7/Scraptown | Destroyed by AA-3Z1(x) with Makeshift Spear Last Messages --------------- 02964_ VV-Z88(p) destroyed. 02964_ Slug penetrates Machine. 02964_ Machine disabled. 02966_ WC-WYK(j) destroyed. 02970_ Critical hit (Burn: +50). 02971_ TU-SK4(j) destroyed. 02975_ Com. Wheel destroyed. 02975_ Critical hit (Burn: +50). 02975_ Acquired 9 matter. 02978_ Acquired Ovr. Titanium Leg. 02980_ Sub. Machine Gun destroyed. 02986_ YJ-33W(g) destroyed. 02994_ 2T-9MJ(j) destroyed. 02994_ Acquired 25 matter. 02996_ Acquired 5 matter. 02998_ Destroyed Lgt. Ion Engine. 02998_ Flak Gun destroyed. 03000_ Critical hit (Burn: +50). 03000_ Imp. Carbon-fiber Leg destroyed. 03002_ Ion Engine destroyed. Map ----- +----------------------------------------------------+ | #????????????????? | | ###### ##########"" """"#####????????????????? | | #????## ##????????#" !%"#????????????????????? | | #####?# #########?#" ]""#????????????????????? | | #?# """"""""#?#" ["""#????????????????????? | | ### ### " ""#?#" """#????????????????????? | | #"" """ "#?#"""""""#????????????????????? | | #" """ " ""#?#########?????????????????##?? | | #" " """"""""#???????????????????????????#"## | | #" ##"""####????????????????????????#### "] | | #" "" " #############?####???????????????#" "" | | #" " #?# #?# """"#?????????????#"" | | #"""""" #?# #?# ||| #?????????????#!" | | ####### #?# #?# """"#????????????##"" | | #?????# #?# #?# || #????????????#" | | ####### #?# #?# """"#????????????##"" | | #?# #?#%||| #?????????????#*" | | #?# #?# " ""#????????????##"" | | ####### #?# ! #?# || #????????????#" | | ?????# #?# !/ #?# #????????????###### | | ????### ##########!##### ##########???????##### | | ##### j #???????#"""" | | """ # j #???????#" | | # = #???????#" | | # *p #???????#" | | # !@x #???????#" | | # ################# #???#####" | | # #???????????????# #???#"""" | | # #?????#########?# #???#"""" | | # #?????# ## #???#"""" | | #????# """""" #???#"""" | | "X" # #????# "" "" # #???#"""" | | ##### #????# " " # ###?#"""" | | ????# #????# " " # ""#"#"""" | | ????# #????# " " # """"#"""" | | ????# #????# " " # * ""#######" | | ##### #????# "" "" # [% ! ###?????#" | | # #????# """""" #= *%######### | | # #?????# #"%[ [ | | # #?????###########* | | # #???????????????# | | # #???????????????# | | # ################# | | # ! | | !% | | # | | ##### | | ##### | | #""""#" [ | | #????#" ! | +----------------------------------------------------+ Best States ------------- Heat Dissipation 25 Energy Generation 10 Energy Capacity 250 Matter Stores 300 Matter Capacity 300 Sight Range 16 Robot Scan Range 16 Terrain Scan Range 16 Terrain Scan Density 10 Evasion (%) 55 Item Schematics ----------------- None Robot Schematics ------------------ None Fabricated ------------ Nothing Repaired ---------- Nothing Studied --------- None Alien Tech Used ----------------- None Achievements -------------- Bob, First Of His Name Civilization 2243 DATA ERROR: Steam Global Achievement% I Have A Map? Link The Feds Organ Harvest Strength In Numbers There's More Where That Came From Challenges ------------ None Game ------ Seed MachineNuclearCharge Manual? 0 Play Time 01:10:30 Cumulative 15.5 hours Start 2025.12.09 @ 16:57:47 End 2025.12.12 @ 21:38:29 Sessions 3 Manual Loads 0 Difficulty Rogue Special Mode None Game No. 16 Rogue 16 Adventurer 0 Explorer 0 Win Type - Total 0 Types 0/0/0/0/0/0/0/0/0/0 Lore% 19 Gallery% 20 Achievement% 10 Wizard Run 0 Options --------- Layout 1 ASCII 0 Keyboard 0 Movement Mouse Keybinds 0 Fullscreen 0 Font 42/SmallcapsGlow Map View 50x35 Zoom Use 0% Tactical HUD 1 Map Filters NONE Filters NONE Steam 1 RUN: 7a92bef7-93f4-4d4a-8da4-dd07dc3895af